{"text_format":"3","workbook":"xlsx","n_sheets":1,"sheets":["тестовый"],"read":"whole","date_system":"1900"}

{"sheet":"тестовый","index":0,"n_rows":53,"n_cols":17,"rows_kept":53,"merged":[[0,0,0,16]]}
["Протокол по итогам муниципального этапа ВсОШ по предмету \"Экология\"  Менделеевского  муниципального района в 2019-2020 учебном году "]
["№ п/п","Муниципалитет","Полное наименование образовательного учреждения (по уставу)","Фамилия","Имя","Отчество","Класс","Дата рождения","Пол","Балл","Апеляционный балл","Итоговый балл","Максимальный балл","Статус","Фамилия, имя, отчество педагога, подготовившего участника олимпиады","Полное наименование образовательного учреждения (по уставу)","Предмет"]
[5,"Менделеевский","МБОУ \"СОШ №4\"","Булатов ","Адель",null,7,null,"м",15,null,15,52,{"$f":"IF(L3<(M3/4),\"участник\",IF(L3<(M3/2),\"призер\",\"победитель\"))","v":"призер"},"Егорова Л.М.","МБОУ \"СОШ №4\"","экология"]
[2,"Менделеевский","МБОУ \"СОШ №1\"","Мельников","Виктор",null,7,null,"м",12,null,12,52,"участник","Максютина А.И.","МБОУ \"СОШ №1\"","экология"]
[4,"Менделеевский","МБОУ \"СОШ №1\"","Ибрагимова","Самира",null,7,null,"ж",11,null,11,52,"участник","Максютина А.И.","МБОУ \"СОШ №1\"","экология"]
[3,"Менделеевский","МБОУ \"СОШ №1\"","Камашев","Александр",null,7,null,"м",8,null,8,52,"участник","Максютина А.И.","МБОУ \"СОШ №1\"","экология"]
[6,"Менделеевский","МБОУ \"СОШ №1\"","Саттарова","Дарина",null,7,null,"ж",5,null,5,52,"участник","Максютина А.И.","МБОУ \"СОШ №1\"","экология"]
[7,"Менделеевский","МБОУ СОШ №3\"","Алексанрова","Ксения",null,7,null,"ж",4,null,4,52,"участник","Ходалова","МБОУ \"СОШ №3\"","экология"]
[1,"Менделеевский","МБОУ \"СОШ №3\"","Зубрин","Ярослав",null,7,null,"м",3,null,3,52,"участник","Ахмадуллина С.А.","МБОУ \"СОШ №3\"","экология"]
[9,"Менделеевский","МБОУ \"Бизякинская СОШ \"","Нуретдинова","Алина",null,8,null,"ж",16,null,16,52,"призер","Искакова Н.М.","МБОУ \"Бизякинская СОШ\"","экология"]
[8,"Менделеевский","МБОУ \"Ижевская СОШ\"","Алексеева","Виктория",null,8,null,"ж",12,null,12,52,"участник","Алексеева Т.И.","МБОУ \"Ижевская СОШ\"","экология"]
[12,"Менделеевский","МБОУ \"СОШ №1\"","Муллахметов","Даниф",null,8,null,"м",12,null,12,52,"участник","Максютина А.И.","МБОУ \"СОШ №1\"","экология"]
[14,"Менделеевский","МБОУ \"СОШ №1\"","Ракипова","Айгуль",null,8,null,"ж",12,null,12,52,"участник","Максютина А.И.","МБОУ \"СОШ №1\"","экология"]
[13,"Менделеевский","МБОУ \"СОШ №4\"","Бондаренко","Илона",null,8,null,"ж",11,null,11,52,"участник","Егорова Л.М.","МБОУ \"СОШ №4\"","экология"]
[10,"Менделеевский","МБОУ \"Монашевская СОШ\"","Ишаева","Кристина",null,8,null,"ж",10,null,10,52,"участник","Замалиева Г.С","МБОУ \"Монашевская СОШ\"","экология"]
[11,"Менделеевский","МБОУ \"СОШ №1\"","Гареев ","Тимур",null,8,null,"м",7,null,7,52,"участник","Максютина А.И.","МБОУ \"СОШ №1\"","экология"]
[16,"Менделеевский","МБОУ \"СОШ №1\"","Лесничук","Арсений",null,9,null,"м",26,null,26,64,"призер","Максютина А.И.","МБОУ \"СОШ №1\"","экология"]
[15,"Менделеевский","МБОУ \"СОШ №1\"","Лукеча","Аурика",null,9,null,"ж",11,null,11,64,"участник","Мищихина Л.М.","МБОУ \"СОШ №1\"","экология"]
[17,"Менделеевский","МБОУ \"СОШ №1\"","Соловьев","Дмитрий",null,9,null,"м",9,null,9,64,"участник","Максютина А.И.","МБОУ \"СОШ №1\"","экология"]
[18,"Менделеевский","МБОУ \"СОШ №4\"","Булатова","Ксения",null,9,null,"ж",9,null,9,64,"участник","Егорова Л.М.","МБОУ \"СОШ №4\"","экология"]
[27,"Менделеевский","МБОУ \"Ижевская СОШ\"","Гильмутдинова","Алина",null,10,null,"ж",35,null,35,83,"призер","Алексеева Т.И.","МБОУ \"Ижевская СОШ\"","экология"]
[19,"Менделеевский","МБОУ \"Гимназия №1\"","Калмыков ","Андрей",null,10,null,"м",30.5,null,30.5,83,"призер","Малыхина Н.В.","МБОУ \"Гимназия №1\"","экология"]
[23,"Менделеевский","МБОУ \"СОШ №3\"","Тешабаева","Диляра",null,10,null,"ж",29,null,29,83,"призер","Ганеева Р.Ю.","МБОУ \"СОШ №3\"","экология"]
[21,"Менделеевский","МБОУ \"СОШ №1\"","Лызлова","Арина",null,10,null,"ж",21,null,21,83,"призер","Максютина А.И.","МБОУ \"СОШ №1\"","экология"]
[28,"Менделеевский","МБОУ \"СОШ №1\"","Чупина","Ярослава",null,10,null,"ж",19,null,19,83,"участник","Максютина А.И.","МБОУ \"СОШ №1\"","экология"]
[26,"Менделеевский","МБОУ \"Гимназия №1\"","Овчарова","Алина",null,10,null,"ж",14,null,14,83,"участник","Малыхина Н.В.","МБОУ \"Гимназия №1\"","экология"]
[29,"Менделеевский","МБОУ \"СОШ №4\"","Замалетдинов","Ильдан",null,10,null,"м",14,null,14,83,"участник","Егорова Л.М.","МБОУ \"СОШ №4\"","экология"]
[20,"Менделеевский","МБОУ \"Монашевская СОШ\"","Иванова","Екатерина",null,10,null,"ж",13,null,13,83,"участник","Замалиева Г.С","МБОУ \"Монашевская СОШ\"","экология"]
[25,"Менделеевский","МБОУ \"Бизякинская СОШ \"","Мусина","Резида",null,10,null,"ж",12,null,12,83,"участник","Искакова Н.М.","МБОУ \"Бизякинская СОШ\"","экология"]
[24,"Менделеевский","МБОУ \"Гимназия №1\"","Сабирова","Элина",null,10,null,"ж",9,null,9,83,"участник","Малыхина Н.В.","МБОУ \"Гимназия №1\"","экология"]
[22,"Менделеевский","МБОУ \"СОШ №1\"","Кузнецова","Ульяна",null,10,null,"ж",6,null,6,83,"участник","Максютина А.И.","МБОУ \"СОШ №1\"","экология"]
[31,"Менделеевский","МБОУ \"СОШ №1\"","Чернова","Дарья",null,11,null,"ж",10.5,null,10.5,100,"участник","Максютина А.И.","МБОУ \"СОШ №1\"","экология"]
[32,"Менделеевский","МБОУ \"СОШ №1\"","Нестерова","Татьяна",null,11,null,"ж",10,null,10,100,"участник","Максютина А.И.","МБОУ \"СОШ №1\"","экология"]
[30,"Менделеевский","МБОУ \"СОШ №1\"","Муратова","Ксения",null,11,null,"ж",6,null,6,100,"участник","Максютина А.И.","МБОУ \"СОШ №1\"","экология"]
[{"$nulls":16},"Экономика"]
[{"$nulls":16},"Экономика"]
[{"$nulls":16},"Экономика"]
[{"$nulls":16},"Экономика"]
[{"$nulls":16},"Экономика"]
[{"$nulls":16},"Экономика"]
[{"$nulls":16},"Экономика"]
[{"$nulls":16},"Экономика"]
[{"$nulls":16},"Экономика"]
[{"$nulls":16},"Экономика"]
[{"$nulls":16},"Экономика"]
[{"$nulls":16},"Экономика"]
[{"$nulls":16},"Экономика"]
[{"$nulls":16},"Экономика"]
[{"$nulls":16},"Экономика"]
[{"$nulls":16},"Экономика"]
[{"$nulls":16},"Экономика"]
[{"$nulls":16},"Экономика"]
[{"$nulls":16},"Экономика"]